fUST/lending_fUST_20250530
["ID","MTS","AMOUNT","RATE_DAILY","PERIOD"]
[363177504,1748613057703,-167.079878,0.00020547,2]
[363177505,1748613057712,-430.0,0.00020547,2]
[363177506,1748613057723,-430.0,0.00020547,2]
[363177507,1748613057732,-2375.25,0.00020547,2]
[363177508,1748613057743,-430.0,0.00020547,2]
[363177509,1748613057756,-2994.36,0.00020547,2]
[363177510,1748613057766,-1016.84,0.00020547,2]
[363177511,1748613057776,-2410.19,0.00020547,2]
[363177512,1748613057787,-480.64,0.00020547,2]
[363177513,1748613057798,-652.32,0.00020547,2]
[363177514,1748613057807,-495.09,0.00020547,2]
[363177515,1748613057819,-430.0,0.00020547,2]
[363177516,1748613057829,-151.0,0.00020547,2]
[363177517,1748613057839,-430.0,0.00020547,2]
[363177518,1748613057848,-639.88,0.00020547,2]
[363177519,1748613057858,-2025.31,0.00020547,2]
[363177520,1748613057868,-4340.74,0.00020547,2]
[363177521,1748613057878,-151.0,0.00020547,2]
[363177522,1748613057888,-306.0,0.00020548,2]
[363177523,1748613057898,-572.1885403,0.00020548,2]
[363177524,1748613057908,-572.1885402,0.00020548,2]
[363177525,1748613057918,-342.3780777,0.00020548,2]
[363177526,1748613057930,-572.1885402,0.00020548,2]
[363177527,1748613057940,-6190.22188736,0.00020555,3]
[363177528,1748613057949,-215.0738,0.00020566,2]
[363177529,1748613057959,-151.0,0.0002059,2]
[363177530,1748613057969,-151.0,0.0002059,2]
[363177531,1748613057979,-151.0,0.0002059,2]
[363177532,1748613057990,-151.0,0.0002059,2]
[363177533,1748613057999,-213.940219,0.0002059,2]
[363177534,1748613058009,-213.940219,0.0002059,2]
[363177535,1748613058019,-162.059594,0.0002059,2]
[363177536,1748613058029,-162.059594,0.0002059,2]
[363177537,1748613058039,-151.0,0.0002059,2]
[363177538,1748613058049,-420.0,0.00020602,2]
[363177539,1748613058059,-151.0,0.00020679,2]
[363177540,1748613058069,-1000.0,0.00020679,2]
[363177541,1748613058079,-6190.22188736,0.00020762,3]
[363177542,1748613058089,-1000.0,0.00020792,2]
[363177543,1748613058099,-2106.0314283,0.00020816,2]
[363177544,1748613058108,-160.0,0.0002082,2]
[363177545,1748613058118,-151.0,0.00020821,2]
[363177546,1748613058128,-151.0,0.00020821,2]
[363177547,1748613058138,-151.0,0.00020821,2]
[363177548,1748613058147,-151.0,0.00020821,2]
[363177549,1748613058157,-163.835936,0.00020821,2]
[363177550,1748613058166,-163.835936,0.00020821,2]
[363177551,1748613058177,-151.0,0.00020821,2]
[363177552,1748613058187,-151.0,0.00020821,2]
[363177553,1748613058197,-151.0,0.00020821,2]
[363177554,1748613058208,-151.0,0.00020821,2]
[363177555,1748613058217,-151.0,0.00020821,2]
[363177556,1748613058227,-245.458024,0.00020821,2]
[363177557,1748613058237,-245.458024,0.00020821,2]
[363177558,1748613058247,-472.22383404,0.00020821,2]
[363177559,1748613058257,-151.0,0.00020821,2]
[363177560,1748613058267,-430.0,0.00020821,2]
[363177561,1748613058278,-151.0,0.00020821,2]
[363177562,1748613058288,-151.384668,0.00020821,2]
[363177563,1748613058298,-430.0,0.00020821,2]
[363177564,1748613058308,-535.809858,0.00020821,2]
[363177565,1748613058318,-535.809858,0.00020821,2]
[363177566,1748613058440,-151.0,0.00020821,2]
[363177567,1748613058451,-430.0,0.00020821,2]
[363177568,1748613058461,-430.0,0.00020821,2]
[363177569,1748613058471,-226.470442,0.00020821,2]
[363177570,1748613058481,-226.470442,0.00020821,2]
[363177571,1748613058492,-824.46,0.00020821,2]
[363177572,1748613058502,-607.68,0.00020821,2]
[363177573,1748613058512,-430.0,0.00020821,2]
[363177574,1748613058521,-430.0,0.00020821,2]
[363177575,1748613058531,-652.05,0.00020821,2]
[363177576,1748613058540,-430.0,0.00020821,2]
[363177577,1748613058549,-430.0,0.00020821,2]
[363177578,1748613058558,-430.0,0.00020821,2]
[363177579,1748613058567,-430.0,0.00020821,2]
[363177580,1748613058577,-430.0,0.00020821,2]
[363177581,1748613058586,-993.61,0.00020821,2]
[363177582,1748613058595,-1987.99,0.00020821,2]
[363177583,1748613058604,-1285.02,0.00020821,2]
[363177584,1748613058613,-430.0,0.00020821,2]
[363177585,1748613058622,-430.0,0.00020821,2]
[363177586,1748613058631,-430.0,0.00020821,2]
[363177587,1748613058641,-430.0,0.00020821,2]
[363177588,1748613058650,-430.0,0.00020821,2]
[363177589,1748613058659,-2452.41,0.00020821,2]
[363177590,1748613058669,-430.0,0.00020821,2]
[363177591,1748613058680,-430.0,0.00020821,2]
[363177592,1748613058689,-824.61,0.00020821,2]
[363177593,1748613058698,-739.65,0.00020821,2]
[363177594,1748613058708,-249.22,0.00020821,2]
[363177595,1748613058717,-4093.66,0.00020821,2]
[363177596,1748613058727,-1699.19,0.00020821,2]
[363177597,1748613058736,-1257.12,0.00020821,2]
[363177598,1748613058745,-5783.14,0.00020821,2]
[363177599,1748613058759,-485.33,0.00020821,2]
[363177600,1748613058768,-430.0,0.00020821,2]
[363177601,1748613058778,-1220.08,0.00020821,2]
[363177602,1748613058786,-893.27,0.00020821,2]
[363177603,1748613058796,-785.41,0.00020821,2]
[363177604,1748613058805,-533.82,0.00020821,2]
[363177605,1748613058814,-632.91,0.00020821,2]
[363177606,1748613058823,-184.535282,0.00020821,2]
[363177607,1748613058834,-184.535282,0.00020821,2]
[363177608,1748613058844,-683.66,0.00020821,2]
[363177609,1748613058853,-430.0,0.00020821,2]
[363177610,1748613058862,-5539.24,0.00020821,2]
[363177611,1748613058872,-571.19,0.00020821,2]
[363177612,1748613058881,-798.25,0.00020821,2]
[363177613,1748613058891,-4646.8,0.00020821,2]
[363177614,1748613058900,-151.0,0.00020821,2]
[363177615,1748613058909,-430.0,0.00020821,2]
[363177616,1748613058918,-628.43,0.00020821,2]
[363177617,1748613058928,-430.0,0.00020821,2]
[363177618,1748613058936,-641.7,0.00020821,2]
[363177619,1748613058946,-972.06,0.00020821,2]
[363177620,1748613058955,-1112.77,0.00020821,2]
[363177621,1748613058964,-430.0,0.00020821,2]
[363177622,1748613058973,-3608.65,0.00020821,2]
[363177623,1748613058982,-398.895474,0.00020821,2]
[363177624,1748613058991,-430.0,0.00020821,2]
[363177625,1748613059000,-1361.21,0.00020821,2]
[363177626,1748613059010,-398.895474,0.00020821,2]
[363177627,1748613059019,-430.0,0.00020821,2]
[363177628,1748613059028,-430.0,0.00020821,2]
[363177629,1748613059038,-2177.71,0.00020821,2]
[363177630,1748613059047,-3492.68,0.00020821,2]
[363177631,1748613059056,-1567.97,0.00020821,2]
[363177632,1748613059066,-430.0,0.00020821,2]
[363177633,1748613059075,-603.33,0.00020821,2]
[363177634,1748613059084,-918.7,0.00020821,2]
[363177635,1748613059094,-151.0,0.00020821,2]
[363177636,1748613059103,-479.76,0.00020821,2]
[363177637,1748613059113,-151.0,0.00020821,2]
[363177638,1748613059123,-430.0,0.00020821,2]
[363177639,1748613059132,-441.1,0.00020821,2]
[363177640,1748613059142,-933.36,0.00020821,2]
[363177641,1748613059151,-1127.29,0.00020821,2]
[363177642,1748613059161,-1627.33,0.00020821,2]
[363177643,1748613059171,-430.0,0.00020821,2]
[363177644,1748613059182,-744.21,0.00020821,2]
[363177645,1748613059191,-607.75,0.00020821,2]
[363177646,1748613059200,-430.0,0.00020821,2]
[363177647,1748613059210,-430.0,0.00020821,2]
[363177648,1748613059219,-2375.25,0.00020821,2]
[363177649,1748613059229,-430.0,0.00020821,2]
[363177650,1748613059238,-2994.36,0.00020821,2]
[363177651,1748613059247,-1016.84,0.00020821,2]
[363177652,1748613059256,-2410.19,0.00020821,2]
[363177653,1748613059265,-480.64,0.00020821,2]
[363177654,1748613059275,-652.32,0.00020821,2]
[363177655,1748613059285,-495.09,0.00020821,2]
[363177656,1748613059294,-430.0,0.00020821,2]
[363177657,1748613059304,-151.0,0.00020821,2]
[363177658,1748613059313,-430.0,0.00020821,2]
[363177659,1748613059323,-639.88,0.00020821,2]
[363177660,1748613059332,-2025.31,0.00020821,2]
[363177661,1748613059341,-4340.74,0.00020821,2]
[363177662,1748613059351,-151.0,0.00020821,2]
[363177663,1748613059360,-5000.0,0.00020841,2]
[363177664,1748613059370,-160.0,0.00020912,3]
[363177665,1748613059380,-1316.7723605,0.00020917,2]
[363177666,1748613059389,-1000.0,0.00020948,2]
[363177667,1748613059398,-503.26187206,0.00020948,2]
[363177668,1748613059409,-1001.51415023,0.00020948,2]
[363177669,1748613059418,-6190.22188736,0.00020969,4]
[363177670,1748613059429,-151.0,0.00020969,2]
[363177671,1748613059438,-151.0,0.00020969,2]
[363177672,1748613059448,-952.58375257,0.0002097,2]
[363177673,1748613059458,-4583.06672461,0.00020995,2]
[363177674,1748613059468,-3000.0,0.00021,2]
[363177675,1748613059478,-377.82367697,0.00021,2]
[363177676,1748613059487,-200.38581031,0.00021,2]
[363177677,1748613059496,-1967.57,0.00021004,2]
[363177678,1748613059506,-3000.0,0.0002101,2]
[363177679,1748613059515,-3000.0,0.0002102,2]
[363177680,1748613059525,-3000.0,0.0002103,2]
[363177681,1748613059535,-151.0,0.0002103,2]
[363177682,1748613059544,-2199.45975524,0.0002103,2]
[363177683,1748613059703,-10861.80633509,0.0002103,2]
[363177684,1748613059712,-500.0,0.00021032,2]
[363177685,1748613059722,-500.0,0.00021032,2]
[363177686,1748613059731,-271.63902336,0.00021032,2]
[363177687,1748613059741,-500.69718326,0.00021032,2]
[363177688,1748613059753,-500.0,0.00021032,2]
[363177689,1748613059762,-501.12813567,0.00021032,2]
[363177690,1748613059771,-500.0,0.00021032,2]
[363177691,1748613059781,-500.0,0.00021032,2]
[363177692,1748613059790,-500.0,0.00021032,2]
[363177693,1748613059800,-272.15343245,0.00021032,2]
[363177694,1748613059809,-500.0,0.00021032,2]
[363177695,1748613059818,-3000.0,0.0002104,2]
[363177696,1748613059828,-151.0,0.0002104,2]
[363177697,1748613059838,-296.041881,0.0002104,2]
[363177698,1748613059848,-3000.0,0.0002105,2]
[363177699,1748613059857,-3000.0,0.0002106,2]
[363177700,1748613059867,-230.272968,0.0002106,2]
[363177701,1748613059876,-230.272968,0.0002106,2]
[363177702,1748613059886,-615.67473108,0.00021068,2]
[363177703,1748613059897,-539.6906921,0.00021068,2]
[363177704,1748613059907,-1007.57693645,0.00021068,2]
[363177705,1748613059916,-564.54710437,0.00021068,2]
[363177706,1748613059926,-369.90684858,0.00021068,2]
[363177707,1748613059936,-500.0,0.00021068,2]
[363177708,1748613059945,-531.61500946,0.00021068,2]
[363177709,1748613059955,-1500.0,0.00021068,2]
[363177710,1748613059964,-503.28249496,0.00021068,2]
[363177711,1748613059974,-1500.0,0.00021068,2]
[363177712,1748613059983,-506.02040442,0.00021068,2]
[363177713,1748613059992,-711.86160502,0.00021068,2]
[363177714,1748613060002,-1063.34904952,0.00021068,2]
[363177715,1748613060012,-500.0,0.00021068,2]
[363177716,1748613060022,-1500.0,0.00021068,2]
[363177717,1748613060032,-1000.0,0.00021068,2]
[363177718,1748613060042,-526.70158447,0.00021068,2]
[363177719,1748613060053,-1500.0,0.00021068,2]
[363177720,1748613060063,-1500.0,0.00021068,2]
[363177721,1748613060074,-723.78757353,0.00021068,2]
[363177722,1748613060084,-3000.0,0.0002107,2]
[363177723,1748613060095,-3000.0,0.0002108,2]
[363177724,1748613060105,-151.0,0.00021084,2]
[363177725,1748613060115,-3000.0,0.0002109,2]
[363177726,1748613060126,-151.0,0.0002109,2]
[363177727,1748613060136,-151.0,0.0002109,2]
[363177728,1748613060145,-556.641424,0.0002109,2]
[363177729,1748613060155,-151.0,0.0002109,2]
[363177730,1748613060165,-151.0,0.0002109,2]
[363177731,1748613060175,-151.0,0.0002109,2]
[363177732,1748613060187,-151.0,0.00021095,2]
[363177733,1748613060196,-125.69862246,0.00021095,2]
[363177734,1748613060209,-25.30137754,0.00021095,2]
[363177735,1748613060219,-151.0,0.00021095,2]
[363177736,1748613060229,-151.0,0.00021095,2]
[363177737,1748613060240,-151.0,0.00021095,2]
[363177738,1748613060250,-151.0,0.00021095,2]
[363177739,1748613060259,-151.0,0.00021095,2]
[363177740,1748613060269,-151.0,0.00021095,2]
[363177741,1748613060279,-151.0,0.00021095,2]
[363177742,1748613060290,-151.0,0.00021095,2]
[363177743,1748613060300,-227.850508,0.00021095,2]
[363177744,1748613060310,-227.850508,0.00021095,2]
[363177745,1748613060320,-151.0,0.00021095,2]
[363177746,1748613060330,-245.458024,0.00021095,2]
[363177747,1748613060339,-245.458024,0.00021095,2]
[363177748,1748613060349,-151.0,0.00021095,2]
[363177749,1748613060358,-430.0,0.00021095,2]
[363177750,1748613060368,-151.0,0.00021095,2]
[363177751,1748613060377,-430.0,0.00021095,2]
[363177752,1748613060387,-155.51216,0.00021095,2]
[363177753,1748613060397,-155.51216,0.00021095,2]
[363177754,1748613060408,-535.809858,0.00021095,2]
[363177755,1748613060421,-535.809858,0.00021095,2]
[363177756,1748613060434,-153.695627,0.00021095,2]
[363177757,1748613060444,-151.0,0.00021095,2]
[363177758,1748613060455,-151.0,0.00021095,2]
[363177759,1748613060466,-151.0,0.00021095,2]
[363177760,1748613060476,-151.0,0.00021095,2]
[363177761,1748613060485,-430.0,0.00021095,2]
[363177762,1748613060493,-430.0,0.00021095,2]
[363177763,1748613060501,-213.940219,0.00021095,2]
[363177764,1748613060510,-824.46,0.00021095,2]
[363177765,1748613060520,-213.940219,0.00021095,2]
[363177766,1748613060530,-607.68,0.00021095,2]
[363177767,1748613060539,-430.0,0.00021095,2]
[363177768,1748613060548,-430.0,0.00021095,2]
[363177769,1748613060557,-652.05,0.00021095,2]
[363177770,1748613060565,-430.0,0.00021095,2]
[363177771,1748613060576,-430.0,0.00021095,2]
[363177772,1748613060585,-430.0,0.00021095,2]
[363177773,1748613060601,-430.0,0.00021095,2]
[363177774,1748613060611,-481.95315985,0.00021095,2]
[363177775,1748613060623,-993.61,0.00021095,2]
[363177776,1748613060633,-1987.99,0.00021095,2]
[363177777,1748613060644,-1285.02,0.00021095,2]
[363177778,1748613060654,-162.059594,0.00021095,2]
[363177779,1748613060665,-484.32761816,0.00021095,2]
[363177780,1748613060676,-162.059594,0.00021095,2]
[363177781,1748613060688,-188.49663862,0.00021095,2]
[363177782,1748613060699,-349.82531801,0.00021095,2]
[363177783,1748613060713,-80.17468199,0.00021095,2]
[363177784,1748613060722,-430.0,0.00021095,2]
[363177785,1748613060733,-430.0,0.00021095,2]
[363177786,1748613060856,-2452.41,0.00021095,2]
[363177787,1748613060867,-562.57,0.00021095,2]
[363177788,1748613060878,-430.0,0.00021095,2]
[363177789,1748613060888,-408.08192393,0.00021095,2]
[363177790,1748613060899,-416.52807607,0.00021095,2]
[363177791,1748613060908,-313.21211109,0.00021095,2]
[363177792,1748613061101,-470.32,0.00019178,2]
[363177793,1748613061110,-430.0,0.00019178,2]
[363177794,1748613061120,-470.32,0.00019452,2]
[363177795,1748613061129,-470.32,0.00019726,2]
[363177796,1748613061139,-151.29656816,0.0002,2]
[363177797,1748613061150,-319.02343184,0.0002,2]
[363177798,1748613061160,-171.63853843,0.00020273,2]
[363177801,1748613228519,437.426318,0.00013699,2]
[363177832,1748613549633,-1722.9802277,0.00017266,2]
[363177833,1748613549656,-5000.0,0.00017616,2]
[363177834,1748613549679,-1069.279976,0.00018063,2]
[363177835,1748613549701,-180.492958,0.00018207,2]
[363177836,1748613549723,-300.0,0.00018898,2]
[363177837,1748613549747,-300.0,0.00018898,2]
[363177838,1748613549769,-300.0,0.00018899,2]
[363177839,1748613549792,-1200.0,0.00018899,2]
[363177840,1748613549815,-163.36966435,0.000189,2]
[363177841,1748613549847,-4548.0474509,0.000189,2]
[363177842,1748613549878,-4548.0474508,0.00019107,2]
[363177843,1748613549899,-182.95,0.00019168,2]
[363177844,1748613549926,-300.0,0.00019176,2]
[363177845,1748613549948,-160.0,0.00019177,2]
[363177846,1748613549972,-500.0,0.00019177,2]
[363177847,1748613549997,-500.0,0.00019177,2]
[363177848,1748613550018,-500.0,0.00019177,2]
[363177849,1748613550040,-500.0,0.00019177,2]
[363177850,1748613550062,-500.0,0.00019177,2]
[363177851,1748613550089,-500.0,0.00019177,2]
[363177852,1748613550113,-478.83227225,0.00019177,2]
[363177853,1748613603169,1108.73564074,0.000153,2]
[363177857,1748613935861,12561.69822059,0.00015,2]
[363177858,1748613935884,3862.78711366,0.00015,2]
[363177859,1748613935906,10457.48484848,0.00015,2]
[363177860,1748613935928,10457.48484848,0.00015,2]
[363177861,1748613935952,10457.48484848,0.00015,2]
[363177862,1748613935974,10457.48484848,0.00015,2]
[363177863,1748613935996,10457.48484848,0.00015,2]
[363177864,1748613936018,10457.48484848,0.00015,2]
[363177865,1748613936044,10457.48484848,0.00015,2]
[363177866,1748613936066,10457.48484848,0.00015,2]
[363177867,1748613936089,10457.48484848,0.00015,2]
[363177868,1748613936112,10457.48484848,0.00015,2]
[363177869,1748613936135,10457.48484848,0.00015,2]
[363177870,1748613936158,10457.48484848,0.00015,2]
[363177871,1748613936179,10457.48484848,0.00015,2]
[363177872,1748613936205,10457.48484848,0.00015,2]
[363177873,1748613936227,9931.35225634,0.00015,2]
[363177962,1748614047123,-559.76081919,0.00017696,2]
[363178036,1748614090217,737.0123279,0.00017719,120]
[363178048,1748614153076,-676.31753605,0.00017696,2]
[363178049,1748614153099,-202.20667849,0.00017772,2]
[363178050,1748614153123,-5877.8806607,0.00017872,2]
[363178051,1748614153145,-600.672138,0.00018175,2]
[363178052,1748614153169,-300.0,0.00018214,2]
[363178053,1748614153191,-7839.47096308,0.00018215,2]
[363178055,1748614229249,414.38,0.000219,60]
[363178090,1748614232147,-434.98983272,0.00018215,2]
[363178091,1748614232156,-300.0,0.00018525,2]
[363178094,1748614232166,-151.84828985,0.00019077,2]
[363178095,1748614232177,-417.55454482,0.00019078,2]
[363178096,1748614232187,-2500.0,0.0001916,2]
[363178097,1748614232197,-182.95,0.00019167,2]
[363178098,1748614232206,-300.00000879,0.0001917,2]
[363178099,1748614232217,-300.0,0.00019171,2]
[363178100,1748614232227,-300.0,0.00019171,2]
[363178101,1748614232236,-500.0,0.00019173,2]
[363178102,1748614232246,-168.59964336,0.00019173,2]
[363178103,1748614232256,-160.64621843,0.00019173,2]
[363178104,1748614232265,-500.0,0.00019173,2]
[363178105,1748614232275,-500.0,0.00019173,2]
[363178106,1748614232285,-500.0,0.00019173,2]
[363178108,1748614232295,-504.4253613,0.00019173,2]
[363178110,1748614232304,-500.0,0.00019173,2]
[363178112,1748614232314,-500.0,0.00019173,2]
[363178114,1748614232324,-500.0,0.00019173,2]
[363178115,1748614232333,-500.87155734,0.00019173,2]
[363178116,1748614232342,-500.0,0.00019173,2]
[363178117,1748614232352,-500.0,0.00019173,2]
[363178118,1748614232361,-151.0,0.00019177,2]
[363178119,1748614232371,-566.39823566,0.00019177,2]
[363178120,1748614232380,-566.39823566,0.00019177,2]
[363178121,1748614232389,-566.39823566,0.00019177,2]
[363178122,1748614232399,-566.39823566,0.00019177,2]
[363178123,1748614232408,-566.39823566,0.00019177,2]
[363178124,1748614232417,-566.39823566,0.00019177,2]
[363178125,1748614232426,-566.39823566,0.00019177,2]
[363178126,1748614232435,-566.39823566,0.00019177,2]
[363178127,1748614232443,-566.39823566,0.00019177,2]
[363178128,1748614232453,-566.39823566,0.00019177,2]
[363178129,1748614232462,-566.39823566,0.00019177,2]
[363178130,1748614232471,-566.39823566,0.00019177,2]
[363178131,1748614232480,-566.39823566,0.00019177,2]
[363178132,1748614232491,-566.39823566,0.00019177,2]
[363178133,1748614232500,-566.39823566,0.00019177,2]
[363178134,1748614232509,-566.39823566,0.00019177,2]
[363178135,1748614232518,-566.39823567,0.00019177,2]
[363178136,1748614232528,-566.39823567,0.00019177,2]
[363178137,1748614232537,-566.39823567,0.00019177,2]
[363178138,1748614232546,-566.39823567,0.00019177,2]
[363178139,1748614232554,-566.39823567,0.00019177,2]
[363178140,1748614232563,-566.39823567,0.00019177,2]
[363178141,1748614232572,-566.39823567,0.00019177,2]
[363178142,1748614232581,-566.39823567,0.00019177,2]
[363178143,1748614232590,-566.39823567,0.00019177,2]
[363178144,1748614232598,-566.39823567,0.00019177,2]
[363178145,1748614232607,-849.59735349,0.00019177,2]
[363178146,1748614232616,-500.0,0.00019177,2]
[363178147,1748614232625,-500.0,0.00019177,2]
[363178148,1748614232634,-549.70285061,0.00019177,2]
[363178149,1748614232643,-430.0,0.00019178,2]
[363178150,1748614232653,-436.7071302,0.00019178,2]
[363178151,1748614232661,-450.0,0.00019178,2]
[363178152,1748614232671,-430.0,0.00019178,2]
[363178153,1748614232678,-430.0,0.00019178,2]
[363178154,1748614232689,-430.0,0.00019178,2]
[363178155,1748614232698,-294.25797797,0.00019178,2]
[363178156,1748614232708,-135.74202203,0.00019178,2]
[363178157,1748614232717,-430.0,0.00019178,2]
[363178158,1748614232727,-279.85956293,0.00019178,2]
[363178159,1748614232734,-430.0,0.00019178,2]
[363178160,1748614232744,-430.0,0.00019178,2]
[363178161,1748614232755,-430.0,0.00019178,2]
[363178162,1748614232765,-430.0,0.00019178,2]
[363178163,1748614232774,-430.0,0.00019178,2]
[363178164,1748614232784,-430.0,0.00019178,2]
[363178165,1748614232793,-430.0,0.00019178,2]
[363178166,1748614232802,-430.0,0.00019178,2]
[363178167,1748614232811,-430.0,0.00019178,2]
[363178168,1748614232820,-430.0,0.00019178,2]
[363178169,1748614232831,-506.3921395,0.00019178,2]
[363178170,1748614232842,-430.0,0.00019178,2]
[363178171,1748614232851,-242.24427179,0.00019178,2]
[363178172,1748614232861,-430.0,0.00019178,2]
[363178173,1748614232871,-430.0,0.00019178,2]
[363178174,1748614232881,-430.0,0.00019178,2]
[363178175,1748614232891,-430.0,0.00019178,2]
[363178176,1748614232900,-199.31904658,0.00019178,2]
[363178182,1748614238054,-500.0,0.00019176,2]
[363178183,1748614238064,-194.31691311,0.00019176,2]
[363178184,1748614238073,-0.92308689,0.00019176,2]
[363178185,1748614238085,-499.07691311,0.00019176,2]
[363178186,1748614238095,-500.0,0.00019176,2]
[363178187,1748614238105,-500.0,0.00019176,2]
[363178188,1748614238114,-442.03493254,0.00019176,2]
[363178189,1748614238126,-57.96506746,0.00019176,2]
[363178190,1748614238139,-328.03868498,0.00019176,2]
[363178191,1748614238149,-500.0,0.00019176,2]
[363178192,1748614238160,-500.0,0.00019176,2]
[363178193,1748614238170,-240.29585629,0.00019176,2]
[363178194,1748614238181,-500.0,0.00019176,2]
[363178195,1748614238191,-500.0,0.00019176,2]
[363178196,1748614238200,-500.0,0.00019176,2]
[363178197,1748614238211,-500.0,0.00019176,2]
[363178198,1748614238220,-500.0,0.00019176,2]
[363178199,1748614238230,-500.0,0.00019176,2]
[363178200,1748614238240,-500.0,0.00019176,2]
[363178201,1748614238249,-500.0,0.00019176,2]
[363178202,1748614238259,-410.91441427,0.00019176,2]
[363178203,1748614238269,-500.0,0.00019176,2]
[363178204,1748614238279,-356.01407648,0.00019176,2]
[363178205,1748614238288,-497.52605478,0.00019176,2]
[363178206,1748614238301,-2.47394522,0.00019176,2]
[363178207,1748614238311,-151.0,0.00019177,2]
[363178208,1748614238321,-230.68095342,0.00019178,2]
[363178209,1748614238330,-430.0,0.00019178,2]
[363178210,1748614238340,-430.65839878,0.00019178,2]
[363178211,1748614238351,-430.0,0.00019178,2]
[363178212,1748614238361,-430.0,0.00019178,2]
[363178213,1748614238371,-430.0,0.00019178,2]
[363178214,1748614238381,-217.45104975,0.00019178,2]
[363178215,1748614238393,-212.54895025,0.00019178,2]
[363178216,1748614238404,-430.0,0.00019178,2]
[363178217,1748614238414,-430.0,0.00019178,2]
[363178218,1748614238423,-430.0,0.00019178,2]
[363178219,1748614238433,-420.03165965,0.00019178,2]
[363178220,1748614238730,-9.96834035,0.00019178,2]
[363178221,1748614238740,-430.0,0.00019178,2]
[363178222,1748614238750,-430.0,0.00019178,2]
[363178223,1748614238759,-283.95651382,0.00019178,2]
[363178224,1748614238769,-430.0,0.00019178,2]
[363178225,1748614238779,-272.39634903,0.00019178,2]
[363178226,1748614238792,-157.60365097,0.00019178,2]
[363178227,1748614238802,-377.22276556,0.00019178,2]
[363178228,1748614238815,-52.77723444,0.00019178,2]
[363178229,1748614238824,-430.0,0.00019178,2]
[363178230,1748614238834,-430.0,0.00019178,2]
[363178231,1748614238844,-430.0,0.00019178,2]
[363178232,1748614238854,-430.0,0.00019178,2]
[363178233,1748614238863,-430.0,0.00019178,2]
[363178234,1748614238872,-430.0,0.00019178,2]
[363178235,1748614238882,-430.0,0.00019178,2]
[363178236,1748614238891,-430.0,0.00019178,2]
[363178237,1748614238900,-521.30423183,0.00019178,2]
[363178238,1748614238911,-430.0,0.00019178,2]
[363178239,1748614238920,-22.19025023,0.00019178,2]
[363178260,1748614243221,-407.80974977,0.00019178,2]
[363178261,1748614243232,-430.0,0.00019178,2]
[363178262,1748614243241,-430.0,0.00019178,2]
[363178263,1748614243251,-430.0,0.00019178,2]
[363178264,1748614243263,-430.0,0.00019178,2]
[363178265,1748614243275,-430.0,0.00019178,2]
[363178266,1748614243289,-430.0,0.00019178,2]
[363178268,1748614243300,-373.3488749,0.00019178,2]
[363178269,1748614243311,-430.0,0.00019178,2]
[363178270,1748614243322,-403.07429824,0.00019178,2]
[363178271,1748614243332,-430.0,0.00019178,2]
[363178272,1748614243341,-430.0,0.00019178,2]
[363178273,1748614243351,-430.0,0.00019178,2]
[363178274,1748614243362,-430.0,0.00019178,2]
[363178275,1748614243372,-430.0,0.00019178,2]
[363178277,1748614243381,-394.0415995,0.00019178,2]
[363178279,1748614243391,-430.0,0.00019178,2]